fUST/lending_fUST_20241129
["ID","MTS","AMOUNT","RATE_DAILY","PERIOD"]
[343670716,1732825843158,-154.72014751,0.00030211,2]
[343670717,1732825843168,-151.0,0.00030212,7]
[343670718,1732825843178,-151.0,0.00030212,7]
[343670719,1732825843187,-151.0,0.00030212,7]
[343670720,1732825843196,-151.0,0.00030212,7]
[343670721,1732825843205,-151.0,0.00030212,7]
[343670722,1732825843214,-279.881878,0.00030212,7]
[343670723,1732825843223,-151.0,0.00030212,7]
[343670724,1732825843233,-151.0,0.00030212,7]
[343670725,1732825843242,-151.0,0.00030212,7]
[343670726,1732825843252,-262.00044,0.00030212,7]
[343670727,1732825843261,-603.54478542,0.00030212,2]
[343670734,1732825845962,-12813.00396001,0.00030212,2]
[343670735,1732825845971,-405.19365786,0.00030212,2]
[343670736,1732825845981,-146932.1426635,0.00030212,10]
[343670737,1732825846280,-503.63462632,0.00030212,10]
[343670738,1732826016750,836.842935,0.00030137,120]
[343670740,1732826080818,164.211078,0.00013973,2]
[343670744,1732826707276,164.910824,0.00013973,2]
[343670745,1732826746131,-325.42596189,0.00024453,2]
[343670746,1732826746154,-451.64,0.000247,2]
[343670747,1732826746176,-1735.15307226,0.00026877,10]
[343670748,1732826746890,627.632201,0.00030137,120]
[343670749,1732826754084,-255.35360922,0.00026877,10]
[343670750,1732826830094,-300.0,0.00026876,2]
[343670751,1732826830116,-4850.61567896,0.00026876,2]
[343670753,1732826851155,-1142.13156475,0.00026866,10]
[343670760,1732826948100,-406.48,0.000247,2]
[343670761,1732826959154,-8743.93,0.00026844,10]
[343670762,1732826959177,-300.0,0.00026854,2]
[343670763,1732826959203,-80248.15931381,0.00026854,2]
[343670764,1732826962103,-7290.64108718,0.00026854,2]
[343670805,1732827032401,-300.0,0.00026853,2]
[343670806,1732827032413,-22062.0,0.00026853,2]
[343670807,1732827032423,-500.0,0.00026864,2]
[343670808,1732827032433,-253.06884315,0.00026864,2]
[343670809,1732827032443,-206.9350938,0.00026888,2]
[343670810,1732827032453,-10248.9284962,0.00026888,2]
[343670811,1732827032463,-150.0,0.00027253,2]
[343670812,1732827032473,-150.0,0.00027253,2]
[343670813,1732827032483,-210.79600373,0.00028688,2]
[343670814,1732827032493,-211.198,0.00028696,20]
[343670815,1732827032502,-500.0,0.00028696,3]
[343670816,1732827032512,-554.87,0.00028696,3]
[343670817,1732827032521,-177.08,0.00028698,2]
[343670818,1732827032531,-500.0,0.00028773,5]
[343670819,1732827032540,-420.0,0.00029035,2]
[343670820,1732827032550,-194.0,0.0003,2]
[343670821,1732827032560,-268.23,0.000301,31]
[343670822,1732827032572,-268.23,0.000301,31]
[343670823,1732827032583,-268.23,0.000301,31]
[343670824,1732827032593,-268.23,0.000301,31]
[343670825,1732827032603,-268.23,0.000301,31]
[343670826,1732827032613,-268.23,0.000301,31]
[343670827,1732827032623,-268.23,0.000301,31]
[343670828,1732827032633,-268.23,0.000301,31]
[343670829,1732827032643,-268.23,0.000301,31]
[343670830,1732827032652,-268.23,0.000301,31]
[343670831,1732827032664,-268.23,0.000301,31]
[343670832,1732827032674,-268.23,0.000301,31]
[343670833,1732827032683,-8581.23798843,0.00030112,2]
[343670839,1732827038159,-567.68447746,0.00030112,2]
[343670840,1732827038323,-656.26578796,0.00030112,2]
[343670843,1732827040065,-1370.0,0.00030112,2]
[343670844,1732827040177,-34303.50472892,0.00030112,2]
[343670846,1732827040187,-150.93958453,0.00030137,7]
[343670847,1732827040197,-150.93958453,0.00030137,7]
[343670848,1732827040206,-500.0,0.00030212,2]
[343670849,1732827040216,-415.58496343,0.00030213,2]
[343670850,1732827040226,-8619.39695947,0.00030213,2]
[343670851,1732827040236,-151.0,0.00030214,7]
[343670852,1732827040246,-151.0,0.00030214,7]
[343670853,1732827040255,-151.0,0.00030214,7]
[343670854,1732827040265,-151.0,0.00030214,7]
[343670855,1732827040276,-151.0,0.00030214,7]
[343670856,1732827040285,-151.0,0.00030214,7]
[343670857,1732827040295,-273.310456,0.00030214,7]
[343670858,1732827040305,-151.0,0.00030214,7]
[343670859,1732827040315,-151.0,0.00030214,7]
[343670860,1732827040325,-453.22844444,0.00030222,2]
[343670861,1732827040335,-269.053588,0.00030222,7]
[343670862,1732827040345,-151.0,0.00030222,7]
[343670863,1732827040354,-151.0,0.00030222,7]
[343670864,1732827040364,-151.0,0.00030222,7]
[343670865,1732827040374,-151.0,0.00030222,7]
[343670866,1732827040383,-151.0,0.00030222,7]
[343670867,1732827040393,-151.0,0.00030222,7]
[343670868,1732827040403,-151.0,0.00030222,7]
[343670869,1732827040412,-151.0,0.00030222,7]
[343670870,1732827040424,-151.0,0.00030222,7]
[343670871,1732827040434,-151.0,0.00030222,7]
[343670872,1732827040443,-151.0,0.00030222,7]
[343670873,1732827040454,-151.0,0.00030222,7]
[343670874,1732827040463,-151.0,0.00030222,7]
[343670875,1732827040473,-182.00132,0.00030222,7]
[343670876,1732827040483,-150.15,0.00030222,7]
[343670877,1732827040492,-150.15,0.00030222,7]
[343670878,1732827040502,-300.22,0.00030222,7]
[343670879,1732827040512,-164.63152289,0.00030222,7]
[343670880,1732827040523,-199.65,0.00030222,7]
[343670881,1732827040533,-152.76118462,0.00030222,7]
[343670882,1732827040543,-245.38444058,0.00030222,7]
[343670883,1732827040553,-150.15,0.00030222,7]
[343670884,1732827040562,-150.15,0.00030222,7]
[343670885,1732827040571,-150.15,0.00030222,7]
[343670886,1732827040581,-150.15,0.00030222,2]
[343670887,1732827040590,-150.82396481,0.00030222,7]
[343670888,1732827040601,-151.0,0.00030222,7]
[343670889,1732827040610,-151.0,0.00030222,7]
[343670890,1732827040619,-151.0,0.00030222,7]
[343670891,1732827040629,-291.728912,0.00030222,7]
[343670892,1732827040639,-6836.38265294,0.00030222,2]
[343670893,1732827040649,-202.59682893,0.00030222,2]
[343670894,1732827040660,-64427.67730747,0.00030223,10]
[343670909,1732827046048,-7286.61,0.00030213,10]
[343670910,1732827046059,-150.15,0.00030222,7]
[343670911,1732827046069,-1093372.77066898,0.00030223,10]
[343670912,1732827046081,-2394.94701895,0.00030223,10]
[343670913,1732827046093,-1110.9613647,0.00030223,10]
[343670914,1732827046104,-1672.42509565,0.00030223,10]
[343670916,1732827046116,-4477.11999994,0.00030223,10]
[343670917,1732827046127,-626.9332627,0.00030223,10]
[343670918,1732827107290,365.83,0.000247,2]
[343670921,1732827324518,966.631078,0.00030137,120]
[343670923,1732827505274,164.660315,0.00013973,2]
[343670926,1732827932182,-186.82,0.0002449,3]
[343670927,1732827932203,-560.5,0.0002449,3]
[343670928,1732827932227,-300.0,0.00024498,2]
[343670929,1732827932249,-389.49804745,0.00024498,2]
[343670930,1732828033094,-2500.3051127,0.00023734,2]
[343670931,1732828033115,-373.64,0.0002449,3]
[343670932,1732828033136,-300.0,0.00024498,2]
[343670933,1732828033161,-300.0,0.00024498,2]
[343670934,1732828033182,-1392.0,0.00024498,2]
[343670935,1732828033204,-214.30389959,0.00024499,2]
[343670936,1732828033225,-211.87495536,0.00024499,2]
[343670937,1732828033248,-65.09046939,0.00024499,2]
[343670938,1732828038740,128.77358269,0.00030137,120]
[343670939,1732828038767,409.93390832,0.00030137,120]
[343670940,1732828039535,-139.49987895,0.00024499,2]
[343670941,1732828039558,-599.55037814,0.00024499,2]
[343670942,1732828039581,-500.0,0.00024499,2]
[343670943,1732828039604,-500.0,0.00024499,2]
[343670944,1732828039626,-15.22168271,0.00024499,2]
[343670952,1732828155095,-351.06047699,0.00024499,2]
[343670953,1732828155117,-599.07143636,0.00024499,2]
[343670954,1732828155139,-300.0,0.00024499,2]
[343670955,1732828155161,-2052.31787994,0.000245,5]
[343670960,1732828169114,-1145.97143362,0.000245,5]
[343670961,1732828172096,-1100.54294169,0.000245,5]
[343670962,1732828173153,-6748.52438096,0.000245,5]
[343670963,1732828175312,165.037649,0.00013973,2]
[343670969,1732828232324,-300.0,0.00024499,2]
[343670970,1732828232334,-773.07068419,0.000245,5]
[343670971,1732828232433,-1891.0965863,0.000245,5]
[343670972,1732828232445,-331.977,0.000245,5]
[343670973,1732828232456,-2507.77027322,0.000245,5]
[343670992,1732828240394,-1654.97542581,0.000245,5]
[343670993,1732828240407,-3627.88194319,0.000245,5]
[343670994,1732828240450,-282.306,0.000245,5]
[343671000,1732828243305,-21442.76754197,0.000245,5]
[343671013,1732828321931,387.01615225,0.00022,2]
[343671018,1732828806973,284.96380666,0.00017645,2]
[343671019,1732828849197,164.282566,0.00013973,2]
[343671021,1732829150129,-610.05946298,0.00022993,2]
[343671030,1732829238102,-5000.0,0.00022763,2]
[343671031,1732829238125,-165.109861,0.00023225,2]
[343671032,1732829238146,-251.20932842,0.00023291,11]
[343671033,1732829241150,-194.10437248,0.00023291,11]
[343671034,1732829327173,141664.5849298,0.000109,2]
[343671038,1732829346094,-2119.68002242,0.00023058,2]
[343671039,1732829346116,-33.2999744,0.00023291,11]
[343671040,1732829346139,-208.3685558,0.00023377,2]
[343671041,1732829346161,-231.9287021,0.00023472,2]
[343671042,1732829346184,-2328.37558606,0.00024364,2]
[343671043,1732829346206,-500.0,0.00024473,2]
[343671044,1732829346226,-300.0,0.00024498,2]
[343671045,1732829346248,-300.0,0.00024498,2]
[343671046,1732829346269,-625.0,0.00024498,2]
[343671047,1732829346292,-523.33611486,0.00024499,2]
[343671048,1732829346318,-619.47233832,0.00024499,2]
[343671049,1732829346340,-171.11782181,0.00024499,2]
[343671050,1732829346363,-500.0,0.00024499,2]
[343671051,1732829346385,-500.0,0.00024499,2]
[343671052,1732829346407,-192.3882197,0.00024499,2]
[343671053,1732829346430,-4063.62263002,0.000245,2]
[343671054,1732829346452,-178.74385287,0.000245,2]
[343671055,1732829346474,-5288.63981084,0.000245,5]
[343671056,1732829351137,-1090.84310892,0.000245,5]
[343671057,1732829364102,-1198.2421761,0.000245,5]
[343671058,1732829369342,-2031.81131501,0.000245,2]
[343671059,1732829369365,-2412.23585258,0.000245,5]
[343671072,1732829432560,-300.0,0.00024499,2]
[343671073,1732829432570,-300.0,0.00024499,2]
[343671074,1732829432582,-178.74385288,0.000245,2]
[343671075,1732829432592,-12849.1396183,0.000245,5]
[343671076,1732829432675,-2819.0642961,0.000245,5]
[343671086,1732829438942,161.9421785,0.00013973,2]
[343671092,1732829440428,-195695.35199874,0.000245,5]
[343671093,1732829440488,-766.0227325,0.000245,5]
[343671110,1732829443455,-1246.72017249,0.000245,5]
[343671111,1732829443471,-17548.10344824,0.000245,5]
[343671113,1732829443616,-5496.5730547,0.000245,5]
[343671114,1732829443628,-7014.21132116,0.000245,5]
[343671136,1732829447731,164.0,0.00023,2]
[343671137,1732829469648,500.0,0.00030137,120]
[343671139,1732829547939,164.0,0.00022,2]
[343671141,1732830046618,162.0,0.00022,2]
[343671144,1732830182145,163.635229,0.00013973,2]
[343671145,1732830332164,-819.85510578,0.00023409,11]
[343671146,1732830346089,-255.35360922,0.00023409,11]
[343671147,1732830433117,-5882.7256556,0.00023409,11]
[343671148,1732830433256,-243.84337441,0.00023489,2]
[343671149,1732830433289,-56.15662559,0.00023489,2]
[343671150,1732830433311,-2335.18652009,0.00023489,2]
[343671151,1732830440090,-205.57784477,0.00023489,2]
[343671152,1732830546132,-300.0,0.00023392,2]
[343671153,1732830546154,-300.0,0.00023392,2]
[343671154,1732830546174,-1823.65026347,0.00023392,2]
[343671158,1732830551113,-2809.34973653,0.00023392,2]
[343671159,1732830551135,-7168.90519568,0.00023393,2]
[343671160,1732830554100,-3446.33186009,0.00023393,2]
[343671161,1732830559085,-7644.39990863,0.00023393,2]
[343671162,1732830559108,-206.935092,0.00023598,2]
[343671163,1732830559132,-636.08773335,0.00024269,2]
[343671164,1732830559153,-3473.68068402,0.00024347,2]
[343671207,1732830632678,-195.16265401,0.00024399,2]
[343671209,1732830632688,-500.0,0.00024473,2]
[343671211,1732830632699,-300.0,0.00024499,2]
[343671213,1732830632709,-300.0,0.00024499,2]
[343671215,1732830632719,-2037.05342901,0.000245,5]
[343671218,1732830632731,-30904.59688943,0.000245,5]
[343671219,1732830632741,-150.0,0.000246,2]
[343671221,1732830632751,-241.8168679,0.0002465,2]
[343671224,1732830632760,-179.381353,0.00024657,2]
[343671225,1732830632770,-273.45670485,0.00024657,3]
[343671227,1732830632780,-500.0,0.00024657,3]
[343671228,1732830632790,-638.29,0.00024657,3]
[343671229,1732830632800,-500.0,0.00024657,3]
[343671232,1732830632810,-500.0,0.00024657,3]
[343671234,1732830632819,-500.0,0.00024657,3]
[343671236,1732830632829,-500.0,0.00024657,3]
[343671238,1732830632838,-500.0,0.00024657,3]
[343671240,1732830632848,-500.0,0.00024657,3]
[343671241,1732830632858,-225.28,0.00024657,3]
[343671242,1732830632868,-158.11360785,0.00024657,3]
[343671243,1732830632878,-500.0,0.00024657,3]
[343671244,1732830632888,-500.0,0.00024657,3]
[343671245,1732830632898,-380.0,0.00024658,2]
[343671246,1732830632907,-196.5998798,0.00024658,2]
[343671247,1732830632918,-3438.20485962,0.00024659,2]
[343671248,1732830632929,-501.80677352,0.000247,2]
[343671249,1732830632941,-500.0,0.000247,2]
[343671250,1732830632952,-500.0,0.000247,2]
[343671251,1732830632962,-893.1,0.000247,2]
[343671252,1732830632972,-211.199,0.00024771,8]
[343671253,1732830632982,-185.609947,0.00025138,2]
[343671254,1732830632992,-151.410016,0.00025138,2]
[343671255,1732830633002,-327.23763201,0.00025248,2]
[343671256,1732830633011,-185.609947,0.00025452,2]
[343671257,1732830633023,-185.609947,0.00025766,2]
[343671258,1732830633033,-636.08773329,0.00025938,2]
[343671259,1732830633043,-1659.90843803,0.00026,30]
[343671260,1732830633053,-185.609947,0.0002608,2]
[343671261,1732830633063,-163.635229,0.00026274,2]
[343671262,1732830633073,-185.609947,0.00026395,2]
[343671263,1732830633084,-420.0,0.00026554,2]
[343671264,1732830633093,-636.08773329,0.00026773,2]
[343671265,1732830633105,-420.0,0.00026949,2]
[343671266,1732830633115,-549.568,0.00027389,2]
[343671267,1732830633125,-210.914,0.00027389,2]
[343671268,1732830633135,-500.0,0.00027397,2]
[343671269,1732830633145,-636.08773329,0.00027607,2]
[343671270,1732830633154,-362.5,0.00028127,15]
[343671271,1732830633164,-636.08773329,0.00028442,2]
[343671272,1732830633175,-500.0,0.00028767,4]
[343671273,1732830633184,-587.0,0.00028782,2]
[343671274,1732830633194,-636.08773329,0.00029276,2]
[343671275,1732830633204,-500.0,0.00029642,3]
[343671276,1732830633214,-520.0,0.00029644,2]
[343671277,1732830633224,-160.0,0.00029697,3]
[343671278,1732830633234,-6000.0,0.0003,2]
[343671279,1732830633244,-205.0,0.0003,2]
[343671280,1732830633254,-4019.76686861,0.00030019,2]
[343671281,1732830633264,-319.81,0.000301,31]
[343671282,1732830633277,-319.81,0.000301,31]
[343671283,1732830633287,-319.81,0.000301,31]
[343671284,1732830633297,-319.81,0.000301,31]
[343671285,1732830633306,-319.81,0.000301,31]
[343671286,1732830633315,-319.81,0.000301,31]
[343671287,1732830633325,-319.81,0.000301,31]
[343671288,1732830633335,-319.81,0.000301,31]
[343671289,1732830633345,-319.81,0.000301,31]
[343671290,1732830633354,-319.81,0.000301,31]
[343671291,1732830633364,-319.81,0.000301,31]
[343671292,1732830633374,-319.81,0.000301,31]
[343671293,1732830633384,-500.0,0.00030108,3]
[343671294,1732830633394,-500.0,0.00030108,3]
[343671295,1732830633404,-15699.3,0.00030109,10]
[343671296,1732830633414,-13082.75,0.00030109,10]
[343671297,1732830633424,-636.08773329,0.00030111,2]
[343671298,1732830633435,-500.0,0.00030118,3]
[343671299,1732830633445,-500.0,0.00030118,3]
[343671300,1732830633455,-219.48,0.00030118,3]
[343671301,1732830633466,-465.35198503,0.00030118,2]
[343671302,1732830633477,-222000.0,0.00030119,2]
[343671303,1732830633488,-500.0,0.00030136,6]
[343671304,1732830633497,-590.296435,0.00030137,120]
[343671305,1732830633510,-164.71207177,0.00030137,2]
[343671306,1732830633520,-300.224467,0.000302,13]
[343671307,1732830633530,-1000.01398958,0.000302,30]
[343671308,1732830633540,-151.0,0.00030208,7]
[343671309,1732830633550,-151.0,0.00030208,7]
[343671310,1732830633560,-245.667836,0.00030208,7]
[343671311,1732830633570,-151.0,0.00030208,7]
[343671312,1732830633579,-151.0,0.00030208,7]
[343671313,1732830633590,-177.654888,0.00030208,7]
[343671314,1732830633600,-177.654888,0.00030208,7]
[343671315,1732830633610,-177.654888,0.00030208,7]
[343671316,1732830633620,-177.654888,0.00030208,7]
[343671317,1732830633630,-177.654888,0.00030208,7]
[343671318,1732830633640,-177.654888,0.00030208,7]
[343671319,1732830633650,-177.654888,0.00030208,7]
[343671320,1732830633660,-177.654888,0.00030208,7]
[343671321,1732830633670,-177.654888,0.00030208,7]
[343671322,1732830633681,-177.654888,0.00030208,7]
[343671323,1732830633696,-177.654888,0.00030208,7]
[343671324,1732830633705,-177.654888,0.00030208,7]
[343671325,1732830633715,-177.654888,0.00030208,7]
[343671326,1732830633725,-177.654888,0.00030208,7]
[343671327,1732830633736,-177.654888,0.00030208,7]
[343671328,1732830633746,-177.654888,0.00030208,7]
[343671329,1732830633756,-177.654888,0.00030208,7]
[343671330,1732830633767,-177.654888,0.00030208,7]
[343671331,1732830633777,-177.654888,0.00030208,7]
[343671332,1732830633787,-177.654886,0.00030208,7]
[343671333,1732830633796,-153.679206,0.00030208,7]
[343671334,1732830633806,-153.679206,0.00030208,7]
[343671335,1732830633817,-153.679206,0.00030208,7]
[343671336,1732830633828,-153.679206,0.00030208,7]
[343671337,1732830633838,-153.679206,0.00030208,7]
[343671338,1732830633848,-153.679206,0.00030208,7]
[343671339,1732830633858,-153.679206,0.00030208,7]
[343671340,1732830633868,-153.679206,0.00030208,7]
[343671341,1732830633878,-153.679206,0.00030208,7]
[343671342,1732830633889,-153.679206,0.00030208,7]
[343671343,1732830633899,-153.679206,0.00030208,7]
[343671344,1732830633909,-153.679206,0.00030208,7]
[343671345,1732830633919,-153.679206,0.00030208,7]
[343671346,1732830633929,-153.679206,0.00030208,7]
[343671347,1732830633940,-153.679206,0.00030208,7]
[343671348,1732830633951,-153.679206,0.00030208,7]
[343671349,1732830633961,-153.679206,0.00030208,7]
[343671350,1732830633971,-153.679206,0.00030208,7]
[343671351,1732830633981,-153.679206,0.00030208,7]
[343671352,1732830633991,-153.679214,0.00030208,7]
[343671353,1732830634001,-151.0,0.00030208,7]
[343671354,1732830634011,-151.0,0.00030208,7]
[343671355,1732830634022,-151.0,0.00030208,7]
[343671356,1732830634033,-151.0,0.00030208,7]
[343671357,1732830634043,-151.0,0.00030208,7]
[343671358,1732830634053,-151.0,0.00030208,7]
[343671359,1732830634063,-151.0,0.00030208,7]
[343671360,1732830634072,-151.0,0.00030208,7]
[343671361,1732830634082,-151.0,0.00030208,7]
[343671362,1732830634092,-151.0,0.00030208,7]
[343671363,1732830634101,-151.0,0.00030208,7]
[343671364,1732830634112,-151.0,0.00030208,7]
[343671365,1732830634122,-151.0,0.00030208,7]
[343671366,1732830634132,-151.0,0.00030208,7]
[343671367,1732830634142,-151.0,0.00030208,7]
[343671368,1732830634152,-151.0,0.00030208,7]
[343671369,1732830634162,-151.0,0.00030208,7]
[343671370,1732830634172,-266.4101,0.00030208,7]
[343671371,1732830634183,-151.0,0.00030208,7]
[343671372,1732830634192,-152.135456,0.00030208,7]
[343671373,1732830634202,-151.0,0.00030208,7]
[343671374,1732830634212,-151.0,0.00030208,7]
[343671375,1732830634222,-151.0,0.00030208,7]
[343671376,1732830634232,-151.0,0.00030208,7]
[343671377,1732830634242,-151.0,0.00030208,7]
[343671378,1732830634252,-1015.9056575,0.00030211,2]
[343671379,1732830634380,-207.42957674,0.00030211,2]
[343671380,1732830634390,-152.132492,0.00030211,7]
[343671381,1732830634401,-151.0,0.00030211,7]
[343671382,1732830634411,-151.0,0.00030211,7]
[343671383,1732830634420,-151.0,0.00030211,7]
[343671384,1732830634431,-151.0,0.00030211,7]
[343671385,1732830634440,-151.0,0.00030211,7]
[343671386,1732830634450,-151.0,0.00030211,7]
[343671387,1732830634460,-151.0,0.00030211,7]
[343671388,1732830634470,-151.0,0.00030211,7]
[343671389,1732830634479,-151.0,0.00030211,7]
[343671390,1732830634488,-188.313866,0.00030211,7]
[343671391,1732830634501,-151.0,0.00030211,7]
[343671392,1732830634511,-151.0,0.00030211,7]
[343671393,1732830634520,-151.0,0.00030211,7]
[343671394,1732830634530,-151.0,0.00030211,7]
[343671395,1732830634540,-151.0,0.00030211,7]
[343671396,1732830634549,-153.872989,0.00030211,7]
[343671397,1732830634559,-151.0,0.00030211,7]
[343671398,1732830634569,-151.0,0.00030211,7]
[343671399,1732830634578,-151.0,0.00030211,7]
[343671400,1732830634588,-151.0,0.00030211,7]
[343671401,1732830634597,-151.0,0.00030211,7]
[343671402,1732830634606,-151.0,0.00030211,7]
[343671403,1732830634616,-151.0,0.00030211,7]
[343671404,1732830634626,-151.0,0.00030211,7]
[343671405,1732830634635,-151.0,0.00030211,7]
[343671406,1732830634645,-151.0,0.00030211,7]
[343671407,1732830634656,-151.0,0.00030211,7]
[343671408,1732830634666,-151.0,0.00030211,7]
[343671409,1732830634677,-153.654015,0.00030211,7]
[343671410,1732830634687,-171964.33946064,0.00030211,10]
[343671411,1732830634702,-9538.84455649,0.00030211,10]
[343671421,1732830640718,-10902.29,0.00030201,10]
[343671422,1732830640727,-151.0,0.00030208,7]
[343671423,1732830640737,-151.0,0.00030208,7]
[343671424,1732830640746,-151.0,0.00030208,7]
[343671425,1732830640756,-151.0,0.00030208,7]
[343671426,1732830640765,-151.0,0.00030208,7]
[343671427,1732830640775,-151.0,0.00030208,7]
[343671428,1732830640785,-151.0,0.00030208,7]
[343671429,1732830640794,-151.0,0.00030208,7]
[343671430,1732830640804,-151.0,0.00030208,7]
[343671431,1732830640813,-151.0,0.00030208,7]
[343671432,1732830640822,-151.0,0.00030208,7]
[343671433,1732830640832,-151.0,0.00030208,7]
[343671434,1732830640842,-208.337304,0.00030208,7]
[343671435,1732830640852,-42522.46474314,0.00030211,10]
[343671436,1732830640864,-3271.81767709,0.00030211,10]
[343671440,1732830643694,-3163.21333328,0.00030211,10]
[343671449,1732830646570,-22.26210426,0.00030211,10]
[343671454,1732831007149,163.347986,0.00013973,2]
[343671458,1732831546141,-265.25958076,0.00024657,3]
[343671459,1732831592152,-234.74041924,0.00024657,3]
[343671460,1732831592173,-500.0,0.00024657,3]
[343671461,1732831592195,-13.78598793,0.00024657,3]
[343671464,1732831600144,166.818065,0.00013973,2]
[343671466,1732831631138,-486.21401207,0.00024657,3]
[343671467,1732831631160,-254.54352282,0.00024657,3]
[343671468,1732831638090,-300.32647718,0.00024657,3]
[343671469,1732831638113,-1127.85,0.000247,2]
[343671470,1732831638135,-156.307425,0.00025138,2]
[343671471,1732831638157,-300.0,0.000252,2]
[343671472,1732831638179,-163.347986,0.00026274,2]
[343671473,1732831638200,-152.0,0.0002669,2]
[343671474,1732831638222,-300.0,0.00026981,2]
[343671475,1732831638243,-3883.70100815,0.00026981,2]
[343671479,1732831758084,-1015.06,0.00025,2]
[343671480,1732831758107,-158.94165346,0.00025599,2]
[343671498,1732831831900,-300.0,0.00025598,2]
[343671499,1732831831911,-300.0,0.00025599,2]
[343671500,1732831831926,-8495.0,0.00025599,2]
[343671501,1732831831936,-6488.75473076,0.000256,5]
[343671502,1732831837986,-23.45888142,0.000256,5]
[343671503,1732831838011,-5261.43638782,0.000256,5]
[343671504,1732831838021,-302.69733596,0.00026846,4]
[343671505,1732831838031,-4484.20306534,0.00026981,2]
[343671506,1732831838040,-171.48215,0.00026982,2]
[343671507,1732831838050,-4474.15677388,0.00026982,2]
[343671525,1732831842914,-20425.84322612,0.00026982,2]
[343671526,1732831842924,-420.0,0.00027715,2]
[343671527,1732831842934,-150.0,0.0002796,2]
[343671528,1732831842944,-531.0,0.0002796,2]
[343671529,1732831842953,-1104.0,0.0002796,2]
[343671530,1732831842962,-297.47434658,0.0002796,2]
[343671534,1732831843143,-416.489439,0.0002796,2]
[343671535,1732831845853,-1664.03621442,0.0002796,2]
[343671536,1732831845864,-330.7224101,0.000299,2]
[343671537,1732831845873,-330.72241007,0.00029953,2]
[343671538,1732831845883,-160.0,0.00029959,3]
[343671539,1732831845892,-500.0,0.00029989,2]
[343671540,1732831845901,-386.91012939,0.00029989,2]
[343671541,1732831845911,-500.0,0.00029989,2]
[343671542,1732831845921,-363.85586744,0.00029989,2]
[343671543,1732831845932,-500.0,0.00029989,2]
[343671544,1732831845942,-500.0,0.00029989,2]
[343671545,1732831845952,-500.0,0.00029989,2]
[343671546,1732831845961,-500.0,0.00029989,2]
[343671547,1732831845970,-500.0,0.00029989,2]
[343671548,1732831845979,-84.58158256,0.00029989,2]
[343671553,1732832315222,163.347986,0.00013973,2]
[343671555,1732832832147,-975.88990004,0.00025047,2]
[343671556,1732832842135,-4024.11009996,0.00025047,2]
[343671557,1732832842158,-913.56,0.000253,2]
[343671558,1732832842180,-500.0,0.00026982,3]
[343671559,1732832842202,-300.0,0.00027394,2]
[343671560,1732832842224,-300.0,0.00027394,2]
[343671561,1732832842245,-424.75346016,0.00027394,2]
[343671571,1732832950095,-300.0,0.00025089,2]
[343671572,1732832950118,-300.0,0.00025089,2]
[343671573,1732832950140,-452.0,0.00025089,2]
[343671574,1732832950160,-73.98165346,0.0002509,2]
[343671575,1732832970147,-1156.70928752,0.0002509,2]
[343671576,1732832995576,162.99118,0.00013973,2]
[343671625,1732833038378,-570.00975429,0.00024777,2]
[343671626,1732833038402,-12462.46552159,0.00024777,2]
[343671627,1732833038412,-300.0,0.00025089,2]
[343671628,1732833038422,-14701.18744389,0.0002509,2]